bitfinex/quotes_SOLUSD_20220306
["timestamp","ask_amount","ask_price","bid_price","bid_amount"]
[1646585964060,5.384,87.729,87.68,17.1118]
[1646585964261,5.384,87.729,87.675,63.36805396]
[1646585964464,5.384,87.729,87.674,24.5566]
[1646585964465,118.784,87.729,87.674,24.5566]
[1646585964863,118.784,87.729,87.67,17.1149]
[1646585965362,5.384,87.729,87.67,17.1149]
[1646585965564,5.384,87.729,87.662,62.7476434]
[1646585965565,62.63474137,87.718,87.663,5.7]
[1646585965765,5.374,87.717,87.663,5.7]
[1646585966964,62.63474137,87.718,87.663,5.7]
[1646585967165,113.4,87.709,87.663,5.7]
[1646585967464,113.4,87.709,87.631,24.40772185]
[1646585967664,113.4,87.707,87.637,22.9705]
[1646585968165,17.1214,87.7,87.657,5.702]
[1646585968369,53.72937321,87.699,87.657,5.702]
[1646585968564,22.6882,87.708,87.654,62.57900222]
[1646585968965,24.6186,87.747,87.654,62.57900222]
[1646585969167,22.6882,87.73,87.657,47.37822185]
[1646585969366,5.349,87.729,87.66,17.1171]
[1646585969564,78.06038342,87.73,87.661,5.7]
[1646585969765,78.06038342,87.73,87.661,30.10772185]
[1646585970166,78.06038342,87.73,87.662,24.40772185]
[1646585970366,22.6882,87.73,87.663,5.7]
[1646585970566,22.6882,87.73,87.663,12.9]
[1646585971167,22.6882,87.73,87.68,17.1118]
[1646585971469,48.34093954,87.729,87.681,49.92158135]
[1646585971767,5.336,87.728,87.681,49.92158135]
[1646585974371,48.34093954,87.729,87.681,49.92158135]
[1646585977373,5.442,87.728,87.681,49.92158135]
[1646585977972,48.34093954,87.729,87.681,49.92158135]
[1646585980475,48.34093954,87.729,87.682,5.7]
[1646585980675,48.34093954,87.729,87.682,30.3869]
[1646585981277,48.34093954,87.729,87.681,49.92158135]
[1646585981278,118.791,87.728,87.681,49.92158135]
[1646585982076,5.391,87.728,87.681,49.92158135]
[1646585988085,48.34093954,87.729,87.681,49.92158135]
[1646585988688,48.34093954,87.729,87.682,28.8444]
[1646585989786,22.6882,87.73,87.682,28.8444]
[1646585989988,3.09400813,87.749,87.69,17.1103]
[1646585990190,4.6410122,87.774,87.69,17.1103]
[1646585990191,23.3632,87.748,87.69,17.1103]
[1646585990389,23.3632,87.748,87.691,5.7]
[1646585990589,23.3632,87.748,87.683,5.699]
[1646585990789,51.3076969,87.747,87.683,5.699]
[1646585991192,51.3076969,87.747,87.682,23.1444]
[1646585991593,51.3076969,87.747,87.69,17.1108]
[1646585994692,51.3076969,87.747,87.691,5.7]
[1646585995697,51.3076969,87.747,87.692,24.6686]
[1646585996698,51.3076969,87.747,87.7,17.1091]
[1646585996899,51.3076969,87.747,87.701,52.85455944]
[1646585999020,23.3632,87.748,87.701,52.85455944]
[1646585999217,5.389,87.754,87.71,17.1072]
[1646585999419,5.391,87.767,87.71,17.1072]
[1646585999618,5.393,87.774,87.71,17.1072]
[1646585999917,59.02799762,87.773,87.711,5.698]
[1646586000118,59.02799762,87.773,87.721,61.58236819]
[1646586000318,24.6685,87.779,87.722,23.8513]
[1646586000921,5.399,87.785,87.723,5.697]
[1646586001221,3.09400813,87.795,87.723,5.697]
[1646586001423,64.00526852,87.799,87.723,5.697]
[1646586001819,6.23292569,87.798,87.723,5.697]
[1646586002119,6.23292569,87.798,87.73,17.103]
[1646586002321,6.23292569,87.798,87.731,5.697]
[1646586002721,3.09400813,87.804,87.732,24.0144]
[1646586002923,3.09400813,87.805,87.733,113.4]
[1646586003120,3.09400813,87.812,87.75,17.0983]
[1646586003322,64.33945618,87.813,87.751,29.7094]
[1646586003625,64.33945618,87.813,87.752,48.33098316]
[1646586003921,5.415,87.812,87.752,48.33098316]
[1646586004924,5.415,87.812,87.77,17.0949]
[1646586005121,113.4,87.826,87.77,17.0949]
[1646586005323,3.09400813,87.83,87.77,17.0949]
[1646586005530,3.09400813,87.837,87.77,30.8749]
[1646586005829,3.09400813,87.847,87.771,5.694]
[1646586006027,57.62944173,87.846,87.772,77.17301394]
[1646586006228,6.23108308,87.845,87.773,5.694]
[1646586006427,5.394,87.844,87.773,5.694]
[1646586006629,6.23108308,87.845,87.773,5.694]
[1646586007027,52.23744173,87.846,87.773,5.694]
[1646586007327,52.23744173,87.846,87.791,57.282169]
[1646586007528,5.402,87.845,87.791,57.282169]
[1646586007728,52.23744173,87.846,87.792,5.692]
[1646586008630,5.402,87.852,87.8,17.0883]
[1646586008827,23.1365,87.866,87.801,5.692]
[1646586008828,5.402,87.86,87.801,5.692]
[1646586009027,23.1365,87.866,87.794,5.692]
[1646586009427,5.41,87.874,87.795,113.4]
[1646586009628,113.4,87.901,87.81,30.8643]
[1646586009629,53.75477325,87.886,87.81,30.8643]
[1646586009828,5.414,87.885,87.82,13.78]
[1646586010428,23.362,87.9,87.82,13.78]
[1646586010829,23.362,87.9,87.83,17.0783]
[1646586011229,5.387,87.919,87.832,113.4]
[1646586011431,5.387,87.919,87.831,5.69]
[1646586011432,50.53114882,87.918,87.836,113.4]
[1646586011730,5.389,87.917,87.837,119.089]
[1646586012129,5.389,87.917,87.85,17.0779]
[1646586012329,118.789,87.917,87.851,45.52068323]
[1646586012530,17.0801,87.91,87.851,45.52068323]
[1646586012730,5.391,87.909,87.851,45.52068323]
[1646586013133,137.3107,87.917,87.851,45.52068323]
[1646586013333,137.3107,87.917,87.834,5.689]
[1646586013532,17.5291544,87.91,87.833,23.1906]
[1646586013730,0.51284303,87.908,87.833,23.1906]
[1646586014130,0.51284303,87.908,87.834,5.69]
[1646586014332,0.51284303,87.908,87.835,60.44428044]
[1646586014732,48.30369225,87.889,87.835,60.44428044]
[1646586014933,48.30369225,87.889,87.834,5.69]
[1646586014934,113.2711,87.888,87.834,5.69]
[1646586015130,0.51284303,87.887,87.804,24.2862]
[1646586015333,0.51284303,87.885,87.804,24.2862]
[1646586015732,113.2711,87.886,87.81,17.0865]
[1646586015934,17.0861,87.88,87.816,84.84682698]
[1646586017135,17.0861,87.88,87.82,17.0848]
[1646586017834,113.4,87.879,87.82,17.0848]
[1646586018034,17.0861,87.88,87.82,17.0848]
[1646586018234,17.0861,87.88,87.821,5.691]
[1646586018435,24.8348,87.887,87.83,17.0827]
[1646586018636,24.8348,87.887,87.831,5.69]
[1646586018835,24.8348,87.887,87.832,52.84086383]
[1646586019639,24.8348,87.887,87.833,5.69]
[1646586022948,48.30369225,87.889,87.84,17.081]
[1646586023143,23.4438,87.906,87.841,5.69]
[1646586023344,23.4438,87.906,87.832,52.84086383]
[1646586023345,23.4438,87.906,87.84,13.78]
[1646586023644,23.4438,87.906,87.841,5.69]
[1646586024064,23.4438,87.906,87.85,17.0752]
[1646586024246,61.987048,87.905,87.852,47.87705574]
[1646586025447,61.987048,87.905,87.851,5.689]
[1646586025647,113.4,87.904,87.851,5.689]
[1646586026047,61.987048,87.905,87.851,5.689]
[1646586027149,17.0812,87.9,87.851,5.689]
[1646586028348,6.22699912,87.899,87.851,5.689]
[1646586029852,5.72699912,87.899,87.851,5.689]
[1646586030654,65.08105613,87.905,87.851,5.689]
[1646586030853,61.987048,87.905,87.851,5.689]
[1646586032172,65.08105613,87.905,87.86,17.0781]
[1646586033073,61.987048,87.905,87.86,17.0781]
[1646586033273,3.09400813,87.9,87.86,17.0781]
[1646586034175,3.09400813,87.903,87.86,17.0781]
[1646586034374,3.09400813,87.914,87.86,17.0781]
[1646586035079,74.06645357,87.919,87.86,17.0781]
[1646586035477,77.1604617,87.919,87.86,17.0781]
[1646586035677,50.39005357,87.919,87.86,17.0781]
[1646586035878,50.39005357,87.919,87.86,30.8581]
[1646586036478,3.09400813,87.927,87.86,30.8581]
[1646586037380,3.09400813,87.928,87.86,30.8581]
[1646586037581,57.85237377,87.927,87.861,23.1195]
[1646586037780,57.85237377,87.927,87.88,17.0717]
[1646586037983,57.85237377,87.927,87.881,58.8012264]
[1646586038178,3.09400813,87.925,87.881,58.8012264]
[1646586038783,3.09400813,87.922,87.881,58.8012264]
[1646586038981,3.09400813,87.921,87.881,58.8012264]
[1646586039381,3.09400813,87.92,87.881,58.8012264]
[1646586039581,3.09400813,87.921,87.881,58.8012264]
[1646586039982,3.09400813,87.924,87.89,17.0721]
[1646586041082,57.85237377,87.927,87.89,17.0721]
[1646586041083,3.09400813,87.923,87.89,17.0721]
[1646586041485,3.09400813,87.925,87.89,17.0721]
[1646586041685,3.09400813,87.925,87.861,23.1195]
[1646586041686,3.09400813,87.926,87.88,17.0742]
[1646586042086,3.09400813,87.925,87.88,17.0742]
[1646586042287,3.09400813,87.924,87.88,17.0742]
[1646586042487,3.09400813,87.925,87.88,17.0742]
[1646586042687,57.85237377,87.927,87.88,17.0742]
[1646586042688,3.09400813,87.924,87.88,17.0742]
[1646586043389,3.09400813,87.924,87.87,17.0758]
[1646586043588,57.85237377,87.927,87.861,23.1195]
[1646586043589,3.09400813,87.922,87.861,23.1195]
[1646586043786,3.09400813,87.92,87.861,23.1195]
[1646586043986,3.09400813,87.919,87.861,23.1195]
[1646586044186,3.09400813,87.919,87.862,62.56587174]
[1646586044387,3.09400813,87.918,87.862,62.56587174]
[1646586044588,3.09400813,87.919,87.862,62.56587174]
[1646586044787,3.09400813,87.918,87.87,17.0762]
[1646586044986,23.5773,87.926,87.87,17.0762]
[1646586044987,3.09400813,87.921,87.87,17.0762]
[1646586045193,26.67130813,87.926,87.87,17.0762]
[1646586045587,3.09400813,87.926,87.87,17.0762]
[1646586045787,57.85237377,87.927,87.88,17.069]
[1646586046188,3.09400813,87.935,87.88,17.069]
[1646586046489,3.09400813,87.937,87.88,17.069]
[1646586046887,3.09400813,87.937,87.89,17.0708]
[1646586047288,45.84275657,87.936,87.891,53.09620298]
[1646586047687,24.2432,87.938,87.891,53.09620298]
[1646586047891,27.33720813,87.938,87.891,53.09620298]
[1646586048087,3.09400813,87.937,87.891,53.09620298]
[1646586048487,24.2432,87.938,87.891,53.09620298]
[1646586048488,27.33720813,87.938,87.9,17.0703]
[1646586048687,3.09400813,87.937,87.9,17.0703]
[1646586048891,27.33720813,87.938,87.9,17.0703]
[1646586049890,3.09400813,87.937,87.9,17.0703]
[1646586050394,3.09400813,87.936,87.9,17.0703]
[1646586050592,27.33720813,87.938,87.9,17.0703]
[1646586051991,3.09400813,87.937,87.9,17.0703]
[1646586052391,24.2432,87.938,87.892,5.687]
[1646586052591,27.33720813,87.938,87.892,5.687]
[1646586053394,24.2432,87.938,87.892,5.687]
[1646586053593,27.33720813,87.938,87.892,5.687]
[1646586053794,24.2432,87.938,87.891,5.687]
[1646586053996,27.33720813,87.938,87.891,5.687]
[1646586054395,24.2432,87.938,87.891,5.687]
[1646586055896,56.88228399,87.915,87.891,5.687]
[1646586056096,1.54463755,87.914,87.891,5.687]
[1646586056497,56.88228399,87.915,87.891,5.687]
[1646586057596,1.54463755,87.916,87.891,5.687]
[1646586057796,1.54463755,87.915,87.891,5.687]
[1646586057997,1.54463755,87.913,87.9,17.0703]
[1646586058201,1.54463755,87.914,87.891,5.687]
[1646586058401,1.54463755,87.913,87.891,5.687]
[1646586058799,1.54463755,87.915,87.891,5.687]
[1646586058998,1.54463755,87.914,87.891,5.687]
[1646586059199,1.54463755,87.915,87.891,5.687]
[1646586059599,1.54463755,87.914,87.891,5.687]
[1646586059999,1.54463755,87.912,87.891,5.687]
[1646586060805,1.54463755,87.912,87.9,17.0699]
[1646586061600,1.54463755,87.913,87.9,17.0699]
[1646586061800,1.54463755,87.912,87.9,17.0699]
[1646586062202,1.54463755,87.907,87.9,17.0699]
[1646586062602,1.54463755,87.911,87.9,17.0699]
[1646586062804,1.54463755,87.913,87.901,23.5015]
[1646586063004,1.54463755,87.914,87.9,17.0699]
[1646586063204,1.54463755,87.915,87.9,17.0699]
[1646586063406,1.54463755,87.916,87.9,17.0699]
[1646586064003,1.54463755,87.917,87.9,17.0699]
[1646586064910,1.54463755,87.916,87.9,17.0699]
[1646586065110,1.54463755,87.915,87.9,17.0699]
[1646586065533,3.09400813,87.947,87.91,17.0658]
[1646586065733,3.09400813,87.948,87.91,17.0658]
[1646586065936,3.09400813,87.949,87.91,17.0658]
[1646586066335,3.09400813,87.949,87.911,53.47158774]
[1646586066533,3.09400813,87.95,87.911,53.47158774]
[1646586066733,3.09400813,87.949,87.911,53.47158774]
[1646586067132,3.09400813,87.95,87.911,53.47158774]
[1646586067735,3.09400813,87.951,87.911,53.47158774]
[1646586067934,3.09400813,87.951,87.92,17.066]
[1646586068135,3.09400813,87.951,87.911,53.47158774]
[1646586068334,3.09400813,87.952,87.911,53.47158774]
[1646586068537,3.09400813,87.951,87.902,24.6841]
[1646586069340,3.09400813,87.949,87.902,24.6841]
[1646586069536,3.09400813,87.948,87.903,52.49409634]
[1646586069738,3.09400813,87.952,87.903,52.49409634]
[1646586070039,3.09400813,87.951,87.903,52.49409634]
[1646586070238,3.09400813,87.95,87.903,52.49409634]
[1646586070840,3.09400813,87.949,87.903,52.49409634]
[1646586071240,3.09400813,87.949,87.902,24.6841]
[1646586071741,3.09400813,87.943,87.902,24.6841]
[1646586071941,3.09400813,87.945,87.902,24.6841]
[1646586072140,17.0732,87.94,87.902,24.6841]
[1646586072542,17.0732,87.94,87.885,59.47885455]
[1646586072838,17.0732,87.94,87.88,17.0722]
[1646586072839,113.4,87.939,87.886,23.7127]
[1646586073039,17.0732,87.94,87.886,23.7127]
[1646586073040,20.16720813,87.94,87.886,23.7127]
[1646586073841,3.09400813,87.937,87.886,23.7127]
[1646586074442,1.55583393,87.937,87.886,23.7127]
[1646586074642,23.3978,87.954,87.886,23.7127]
[1646586075442,23.3978,87.954,87.9,17.0695]
[1646586077244,17.071,87.95,87.9,17.0695]
[1646586078044,17.071,87.95,87.89,17.0716]
[1646586078746,23.3978,87.954,87.89,17.0716]
[1646586080745,17.0713,87.95,87.89,17.0716]
[1646586081351,17.0713,87.95,87.886,23.7127]
[1646586083248,17.0713,87.95,87.89,17.0714]
[1646586083452,17.0713,87.95,87.886,23.7127]
[1646586085249,17.0713,87.95,87.89,17.0716]
[1646586085453,17.0713,87.95,87.891,5.686]
[1646586088151,23.3978,87.954,87.9,17.0693]
[1646586089851,17.071,87.95,87.9,17.0693]
[1646586090255,17.071,87.95,87.89,17.0713]
[1646586090461,17.071,87.95,87.891,5.686]
[1646586094060,1.23540765,87.949,87.891,5.686]
[1646586096362,17.0735,87.94,87.891,5.686]
[1646586096567,137.9891,87.939,87.891,5.686]
[1646586096971,113.4,87.938,87.891,5.686]
[1646586097370,1.23574143,87.937,87.891,5.686]
[1646586097571,113.4,87.936,87.852,24.9078]
[1646586097772,138.24136587,87.936,87.852,24.9078]
[1646586098171,113.4,87.929,87.86,17.0765]
[1646586098471,58.09902487,87.928,87.86,17.0765]
[1646586098673,113.4,87.927,87.86,17.0765]
[1646586098872,113.4,87.925,87.86,17.0765]
[1646586099295,113.4,87.919,87.86,17.0765]
[1646586100695,17.0791,87.91,87.852,24.9078]
[1646586101094,23.6466,87.909,87.852,24.9078]
[1646586101595,23.6466,87.909,87.86,17.0775]
[1646586107302,23.6466,87.909,87.852,24.9078]
[1646586110207,23.6466,87.909,87.86,17.0775]
[1646586120248,23.6466,87.909,87.843,57.88430343]
[1646586120249,113.4,87.908,87.843,57.88430343]
[1646586120454,113.4,87.908,87.831,23.3071]
[1646586120650,113.4,87.906,87.831,23.3071]
[1646586121255,17.0811,87.9,87.805,11.89018464]
[1646586121452,68.68,87.898,87.811,55.51423014]
[1646586121653,113.4,87.889,87.811,55.51423014]
[1646586121848,68.68,87.877,87.787,23.3071]
[1646586122051,182.08,87.874,87.787,23.3071]
[1646586122460,113.4,87.869,87.787,23.3071]
[1646586122650,113.4,87.867,87.787,23.3071]
[1646586122851,6.22865164,87.868,87.79,57.92690608]
[1646586122852,113.4,87.865,87.79,57.92690608]
[1646586123156,113.4,87.865,87.787,23.3071]
[1646586123351,113.4,87.863,87.787,23.3071]
[1646586123750,113.4,87.861,87.787,23.3071]
[1646586124250,39.06560677,87.863,87.78,17.0927]
[1646586124251,113.4,87.853,87.78,17.0927]
[1646586124451,0.43357228,87.852,87.78,17.0927]
[1646586124750,113.4,87.853,87.78,17.0927]
[1646586125252,113.4,87.853,87.791,49.830535]
[1646586125658,113.4,87.849,87.791,49.830535]
[1646586125855,113.4,87.849,87.77,17.0945]
[1646586126058,113.4,87.849,87.762,24.0617]
[1646586126656,0.48745125,87.848,87.762,24.0617]
[1646586126860,113.4,87.839,87.762,80.03495209]
[1646586127062,113.4,87.837,87.762,24.0617]
[1646586128260,113.4,87.829,87.762,24.0617]
[1646586129160,110.83761433,87.838,87.762,24.0617]
[1646586129161,113.4,87.819,87.762,24.0617]
[1646586129762,113.4,87.819,87.743,24.7595]
[1646586129962,110.83761433,87.838,87.743,24.7595]
[1646586129963,0.3977108,87.816,87.743,24.7595]
[1646586130164,113.4,87.815,87.743,24.7595]
[1646586130765,0.43787281,87.814,87.743,24.7595]
[1646586130964,29.34126781,87.814,87.743,24.7595]
[1646586131162,113.83787281,87.809,87.743,24.7595]
[1646586131363,113.4,87.809,87.743,24.7595]
[1646586132163,113.4,87.812,87.743,24.7595]
[1646586133163,64.22699183,87.789,87.743,24.7595]
[1646586135267,113.4,87.788,87.743,24.7595]
[1646586136666,113.4,87.788,87.734,23.6374]
[1646586137869,182.08,87.784,87.709,23.5836]
[1646586138166,113.4,87.769,87.691,24.3739]
[1646586139166,60.82557751,87.772,87.691,24.3739]
[1646586139367,60.82557751,87.772,87.701,53.75507164]
[1646586139568,60.82557751,87.772,87.702,24.3739]
[1646586140169,113.4,87.771,87.702,24.3739]
[1646586140367,60.82557751,87.772,87.702,24.3739]
[1646586141072,113.4,87.771,87.702,24.3739]
[1646586141269,113.4,87.769,87.702,24.3739]
[1646586142275,113.4,87.771,87.702,24.3739]
[1646586143079,113.4,87.771,87.68,57.0234]
[1646586143080,113.4,87.759,87.68,17.1113]
[1646586143283,57.0374,87.77,87.681,23.4857]
[1646586143284,113.4,87.757,87.681,23.4857]
[1646586143880,142.303395,87.757,87.681,23.4857]
[1646586144099,113.4,87.755,87.681,23.4857]
[1646586144502,113.4,87.739,87.681,23.4857]
[1646586144700,113.4,87.737,87.681,23.4857]
[1646586144903,113.4,87.737,87.64,13.78]
[1646586144904,182.08,87.733,87.64,13.78]
[1646586145107,113.4,87.733,87.641,23.4857]
[1646586145503,113.4,87.729,87.66,17.1147]
[1646586145901,113.4,87.729,87.667,45.93405486]
[1646586146203,113.4,87.729,87.66,17.1147]
[1646586146601,113.4,87.735,87.66,17.1147]
[1646586146803,24.5554,87.736,87.67,17.1141]
[1646586147108,24.5554,87.736,87.671,48.64631134]
[1646586147703,17.1141,87.73,87.671,48.64631134]
[1646586147903,48.70379786,87.738,87.671,48.64631134]
[1646586148907,48.70379786,87.738,87.68,17.1121]
[1646586157114,48.70379786,87.738,87.681,5.7]
[1646586157316,48.70379786,87.738,87.69,17.1054]
[1646586157516,48.70379786,87.738,87.691,56.03049924]
[1646586158319,48.70379786,87.738,87.7,17.1068]
[1646586158519,48.70379786,87.738,87.701,5.7]
[1646586159624,17.108,87.76,87.7,17.1068]
[1646586160427,17.108,87.76,87.701,5.699]
[1646586160624,46.47883288,87.759,87.71,17.1068]
[1646586160924,46.47883288,87.759,87.711,61.67578683]
[1646586162123,46.47883288,87.759,87.7,17.1088]
[1646586162325,46.47883288,87.759,87.701,5.699]
[1646586162725,17.1099,87.75,87.694,5.699]
[1646586162925,46.47883288,87.759,87.694,5.699]
[1646586163126,113.4,87.758,87.694,5.699]
[1646586163325,168.4780316,87.758,87.694,5.699]
[1646586163525,113.4,87.756,87.675,5.699]
[1646586163726,113.4,87.756,87.676,24.8975]
[1646586163928,113.4,87.749,87.676,24.8975]
[1646586164325,113.4,87.747,87.676,24.8975]
[1646586165327,17.1137,87.74,87.676,24.8975]
[1646586165627,17.1137,87.74,87.677,5.7]
[1646586165828,46.92310092,87.739,87.677,5.7]
[1646586166231,46.92310092,87.739,87.68,17.1127]
[1646586166432,46.92310092,87.739,87.681,5.7]
[1646586171957,41.92310092,87.739,87.681,5.7]
[1646586172157,41.92310092,87.739,87.681,52.06875478]
[1646586172360,17.1139,87.73,87.681,5.7]
[1646586173259,23.8679,87.738,87.682,50.29651215]
[1646586173460,23.8679,87.738,87.69,17.1107]
[1646586174360,23.8679,87.738,87.682,50.29651215]
[1646586179860,113.4,87.737,87.682,50.29651215]
[1646586180262,23.8679,87.738,87.682,50.29651215]
[1646586181967,23.8679,87.738,87.681,5.7]
[1646586182165,113.4,87.729,87.681,5.7]
[1646586182365,113.4,87.737,87.681,5.7]
[1646586183967,17.1166,87.72,87.681,5.7]
[1646586184569,63.62969393,87.719,87.681,5.7]
[1646586186068,113.4,87.709,87.681,5.7]
[1646586186968,113.4,87.709,87.649,22.6536]
[1646586187169,17.1197,87.7,87.649,22.6536]
[1646586187369,60.42558771,87.699,87.649,22.6536]
[1646586188172,60.42558771,87.699,87.65,17.1184]
[1646586189969,60.42558771,87.699,87.649,22.6536]
[1646586190170,60.42558771,87.699,87.65,5.702]
[1646586194481,23.7877,87.708,87.65,5.702]
[1646586194482,23.7877,87.708,87.65,22.8206]
[1646586194675,70.50569326,87.772,87.65,22.8206]
[1646586194676,1.53719012,87.727,87.65,22.8206]
[1646586194875,24.9009,87.727,87.65,36.6006]
[1646586195579,45.46323618,87.726,87.65,36.6006]
[1646586196876,17.1159,87.72,87.65,36.6006]
[1646586197879,45.46323618,87.726,87.65,36.6006]
[1646586199178,113.4,87.725,87.65,36.6006]
[1646586199378,17.1158,87.72,87.65,36.6006]
[1646586200385,45.46323618,87.726,87.65,36.6006]
[1646586202783,113.4,87.725,87.65,36.6006]
[1646586203185,45.46323618,87.726,87.65,36.6006]
[1646586204685,113.4,87.725,87.65,36.6006]
[1646586204885,45.46323618,87.726,87.65,36.6006]
[1646586207390,17.1161,87.72,87.65,36.6006]
[1646586209088,45.46323618,87.726,87.65,36.6006]
[1646586209289,47.0004263,87.726,87.65,51.91882185]
[1646586209489,45.46323618,87.726,87.65,38.13882185]
[1646586209689,45.46323618,87.726,87.65,32.43682185]
[1646586209891,45.46323618,87.726,87.66,13.78]
[1646586210093,45.46323618,87.726,87.67,17.1114]
[1646586210292,45.46323618,87.726,87.671,24.6719]
[1646586210892,45.46323618,87.726,87.672,5.7]
[1646586211094,45.46323618,87.726,87.68,17.1106]
[1646586211394,24.9009,87.727,87.68,17.1106]
[1646586212193,56.99214323,87.726,87.681,54.88487625]
[1646586214495,56.99214323,87.726,87.68,17.1106]
[1646586215597,56.99214323,87.726,87.672,5.7]
[1646586215998,113.4,87.725,87.672,5.7]
[1646586216599,17.1159,87.72,87.672,5.7]
[1646586223641,113.4,87.719,87.672,5.7]
[1646586223841,17.1187,87.71,87.672,5.7]
[1646586224043,51.04487369,87.709,87.672,5.7]
[1646586225043,1.53719012,87.708,87.672,5.7]
[1646586225243,52.58206381,87.709,87.672,5.7]
[1646586225843,51.04487369,87.709,87.672,5.7]
[1646586233953,24.2797,87.717,87.672,5.7]
[1646586234154,24.2797,87.717,87.68,17.1124]
[1646586234354,24.2797,87.717,87.672,5.7]
[1646586234954,63.23802341,87.716,87.664,47.07239659]
[1646586235555,113.4,87.715,87.66,17.1163]
[1646586235853,113.4,87.715,87.651,24.2715]
[1646586236256,63.23802341,87.716,87.651,24.2715]
[1646586236555,63.23802341,87.716,87.66,17.1163]
[1646586236757,63.23802341,87.716,87.661,22.9395]
[1646586238258,17.1177,87.71,87.661,22.9395]
[1646586238458,113.4,87.709,87.661,22.9395]
[1646586239457,113.4,87.715,87.661,22.9395]
[1646586239658,113.4,87.699,87.63,17.122]
[1646586239858,113.4,87.697,87.632,24.5889]
[1646586240359,114.93719012,87.697,87.632,24.5889]
[1646586240762,17.1217,87.69,87.632,24.5889]
[1646586243867,17.1217,87.69,87.633,49.71999945]
[1646586244369,17.1217,87.69,87.632,24.5889]
[1646586245587,113.4,87.689,87.632,24.5889]
[1646586245789,113.4,87.679,87.632,24.5889]
[1646586246192,113.4,87.677,87.612,5.704]
[1646586246490,1.53719012,87.675,87.591,23.6344]
[1646586246692,113.4,87.673,87.592,5.705]
[1646586246890,113.4,87.669,87.592,5.705]
[1646586247290,113.4,87.667,87.592,5.705]
[1646586247489,113.4,87.667,87.591,23.6344]
[1646586247690,113.4,87.667,87.592,5.705]
[1646586248692,57.67418855,87.649,87.592,5.705]
[1646586248892,22.6115,87.648,87.592,5.705]
[1646586249294,113.4,87.647,87.592,5.705]
[1646586249492,22.6115,87.648,87.592,5.705]
[1646586249896,113.4,87.647,87.592,5.705]
[1646586250096,22.6115,87.648,87.592,5.705]
[1646586250699,17.1317,87.64,87.591,23.6344]
[1646586251198,113.4,87.639,87.591,5.706]
[1646586251398,113.4,87.639,87.581,5.706]
[1646586251601,113.4,87.629,87.552,28.3246]
[1646586251798,113.4,87.627,87.552,28.3246]
[1646586252195,23.5699,87.628,87.553,60.09726798]
[1646586252196,113.4,87.625,87.553,60.09726798]
[1646586252496,113.4,87.625,87.554,5.708]
[1646586253097,68.68,87.609,87.56,17.1362]
[1646586253398,113.4,87.623,87.531,5.708]
[1646586253399,113.83888816,87.602,87.531,5.708]
[1646586253598,113.4,87.592,87.51,5.708]
[1646586253799,113.4,87.59,87.51,5.708]
[1646586253998,0.43888816,87.589,87.51,5.708]
[1646586254198,113.4,87.569,87.511,54.67586835]
[1646586254400,113.4,87.567,87.512,5.711]
[1646586254599,113.4,87.567,87.511,54.67586835]
[1646586254799,113.4,87.567,87.491,5.711]
[1646586255001,0.43888816,87.566,87.491,5.711]
[1646586255400,113.4,87.559,87.491,5.711]
[1646586255599,113.4,87.559,87.492,23.645]
[1646586255800,113.4,87.559,87.493,60.97627182]
[1646586256000,23.3713,87.567,87.493,60.97627182]
[1646586256201,113.4,87.566,87.493,60.97627182]
[1646586256400,113.4,87.566,87.493,5.712]
[1646586256603,2.75235808,87.565,87.492,23.645]